bitfinex-derivatives/quotes_BTCF0:USTF0_20250823
["timestamp","ask_amount","ask_price","bid_price","bid_amount"]
[1755973650000,2.0409029,115170.0,115160.0,0.292]
[1755973651402,2.05814426,115170.0,115160.0,0.292]
[1755973654902,2.05814426,115170.0,115160.0,0.31673]
[1755973655298,1.26950426,115170.0,115160.0,0.31673]
[1755973655505,2.05818426,115170.0,115160.0,0.31673]
[1755973657503,1.26950426,115170.0,115160.0,0.31673]
[1755973657904,2.05814426,115170.0,115160.0,0.31673]
[1755973658307,2.05814426,115170.0,115160.0,0.292]
[1755973661308,2.05814426,115170.0,115160.0,0.31673]
[1755973661603,2.05814426,115170.0,115160.0,0.292]
[1755973667513,2.41894426,115170.0,115160.0,0.292]
[1755973668215,2.44032125,115170.0,115160.0,0.292]
[1755973673212,2.44032125,115170.0,115160.0,0.31673]
[1755973674211,2.69032125,115170.0,115160.0,0.102]
[1755973675016,2.69032125,115170.0,115160.0,0.002]
[1755973675213,2.69032125,115170.0,115160.0,0.262]
[1755973678516,2.69032125,115170.0,115160.0,0.28561]
[1755973678912,2.44032125,115170.0,115160.0,0.28561]
[1755973681617,1.71872125,115170.0,115160.0,0.28561]
[1755973681924,2.44032125,115170.0,115160.0,0.28561]
[1755973682418,4.09200125,115170.0,115160.0,0.28561]
[1755973702030,3.40712495,115170.0,115160.0,0.28561]
[1755973702336,4.09176125,115170.0,115160.0,0.28561]
[1755973702844,3.37016125,115170.0,115160.0,0.28561]
[1755973703031,4.09176125,115170.0,115160.0,0.28561]
[1755973704638,4.09176125,115170.0,115160.0,0.20561]
[1755973705437,0.2040817,115150.0,115140.0,0.09463]
[1755973705739,2.037878,115150.0,115140.0,0.34463]
[1755973706439,2.038878,115150.0,115140.0,0.34963]
[1755973706736,2.04741838,115150.0,115140.0,0.34963]
[1755973707340,2.04741838,115150.0,115140.0,0.37324]
[1755973708640,2.04641838,115150.0,115140.0,0.36824]
[1755973708838,2.04741838,115150.0,115140.0,0.36824]
[1755973709339,2.11838712,115150.0,115140.0,0.36824]
[1755973711244,3.77018712,115150.0,115140.0,0.36824]
[1755973712438,3.77018712,115150.0,115140.0,0.33609]
[1755973712645,3.77018712,115150.0,115140.0,0.36818]
[1755973713141,3.77018712,115150.0,115140.0,0.2985]
[1755973713346,3.78764309,115150.0,115140.0,0.2985]
[1755973714846,3.93184309,115150.0,115140.0,0.2985]
[1755973715144,4.14844309,115150.0,115140.0,0.2985]
[1755973716049,3.80612494,115150.0,115140.0,0.2985]
[1755973722850,3.80612494,115150.0,115140.0,0.25]
[1755973723151,4.14844309,115150.0,115140.0,0.25]
[1755973734859,0.1128993,115140.0,115130.0,0.10513047]
[1755973735055,2.0403356,115140.0,115130.0,0.47722047]
[1755973735467,1.3556593,115140.0,115130.0,0.47722047]
[1755973735758,0.86108745,115140.0,115130.0,0.47722047]
[1755973735958,0.8750393,115140.0,115130.0,1.49398812]
[1755973736262,2.17896184,115150.0,115140.0,0.1348493]
[1755973736558,2.96712184,115150.0,115140.0,0.88726745]
[1755973736961,2.96712184,115150.0,115140.0,0.80038815]
[1755973737258,3.03861184,115150.0,115140.0,0.80038815]
[1755973737862,3.03861184,115150.0,115140.0,0.80138815]
[1755973738167,3.03707184,115150.0,115140.0,0.45907]
[1755973738466,3.03707184,115150.0,115140.0,0.80138815]
[1755973738765,3.03707184,115150.0,115140.0,0.45907]
[1755973739569,3.39787184,115150.0,115140.0,0.42698]
[1755973739869,3.39787184,115150.0,115140.0,0.45872]
[1755973740557,2.60971184,115150.0,115140.0,0.45872]
[1755973740764,3.39783184,115150.0,115140.0,0.45872]
[1755973749573,2.69459369,115150.0,115140.0,0.45872]
[1755973749775,3.03691184,115150.0,115140.0,0.45872]
[1755973750083,3.39771184,115150.0,115140.0,0.45872]
[1755973754389,1.74591184,115150.0,115140.0,0.45872]
[1755973760190,0.95791184,115150.0,115140.0,0.45872]
[1755973760400,1.79392184,115150.0,115140.0,0.45872]
[1755973765397,1.79392184,115150.0,115140.0,0.53689848]
[1755973765896,1.79392184,115150.0,115140.0,0.5455993]
[1755973766197,1.79388184,115150.0,115140.0,0.5455993]
[1755973767702,1.79384184,115150.0,115140.0,0.5455993]
[1755973769688,1.79384184,115150.0,115140.0,0.88791745]
[1755973770201,1.00600184,115150.0,115140.0,0.88791745]
[1755973770391,1.79384184,115150.0,115140.0,0.5455993]
[1755973770900,1.79384184,115150.0,115140.0,0.88816745]
[1755973771102,1.79380184,115150.0,115140.0,0.88816745]
[1755973771901,1.79380184,115150.0,115140.0,0.95075589]
[1755973772403,1.43300184,115150.0,115140.0,0.95075589]
[1755973775804,1.43300184,115150.0,115140.0,0.88816745]
[1755973776003,1.43300184,115150.0,115140.0,0.96634593]
[1755973779308,1.43300184,115150.0,115140.0,1.32714593]
[1755973785606,0.26191331,115150.0,115140.0,1.57714593]
[1755973785805,0.63879146,115150.0,115140.0,1.57714593]
[1755973786008,1.42647146,115150.0,115140.0,1.57714593]
[1755973786712,1.43529044,115150.0,115140.0,1.23482778]
[1755973788015,1.43629044,115150.0,115140.0,1.23382778]
[1755973792609,1.43629044,115150.0,115140.0,1.14694848]
[1755973792814,1.43629044,115150.0,115140.0,1.1556492]
[1755973794116,1.43629044,115150.0,115140.0,1.13131452]
[1755973794416,1.43629044,115150.0,115140.0,1.21819372]
[1755973798916,1.43629044,115150.0,115140.0,0.96819372]
[1755973803921,0.64861044,115150.0,115140.0,0.9056492]
[1755973804126,1.43609044,115150.0,115140.0,0.98382768]
[1755973810019,1.43609044,115150.0,115140.0,0.89694848]
[1755973811827,1.43609044,115150.0,115140.0,1.23926663]
[1755973814327,1.43609044,115150.0,115140.0,1.16108815]
[1755973815730,1.43609044,115150.0,115140.0,1.23932455]
[1755973819729,1.43609044,115150.0,115140.0,1.32620385]
[1755973824737,1.09377229,115150.0,115140.0,1.32620385]
[1755973825034,1.43609044,115150.0,115140.0,1.32620385]
[1755973826831,1.43609044,115150.0,115140.0,1.24796745]
[1755973827738,1.43609044,115150.0,115140.0,0.89700686]
[1755973827935,1.43609044,115150.0,115140.0,1.23932501]
[1755973829832,1.43609044,115150.0,115140.0,0.89700686]
[1755973830034,1.43609044,115150.0,115140.0,1.32620431]
[1755973832843,1.43609044,115150.0,115140.0,0.96540431]
[1755973833041,1.43609044,115150.0,115140.0,1.32620431]
[1755973834642,1.43609044,115150.0,115140.0,0.98388616]
[1755973834843,1.43609044,115150.0,115140.0,1.32620431]
[1755973835443,1.41863447,115150.0,115140.0,1.32620431]
[1755973835831,1.07631632,115150.0,115140.0,1.32620431]
[1755973836030,1.41863447,115150.0,115140.0,1.32620431]
[1755973836342,1.41863447,115150.0,115140.0,0.98388616]
[1755973836543,1.41863447,115150.0,115140.0,1.32620431]
[1755973837737,0.63115447,115150.0,115140.0,1.32620431]
[1755973837944,1.41835447,115150.0,115140.0,1.32620431]
[1755973839544,1.41835447,115150.0,115140.0,0.98388616]
[1755973839738,1.41835447,115150.0,115140.0,1.32620431]
[1755973843250,1.07603632,115150.0,115140.0,1.32620431]
[1755973843447,1.41835447,115150.0,115140.0,1.32620431]
[1755973844041,1.41835447,115150.0,115140.0,1.24796745]
[1755973844853,1.41835447,115150.0,115140.0,1.32619915]
[1755973846450,1.41835447,115150.0,115140.0,0.96539915]
[1755973846652,1.41835447,115150.0,115140.0,1.32619915]
[1755973849757,1.41835447,115150.0,115140.0,0.951891]
[1755973850063,1.77915447,115150.0,115140.0,0.4894317]
[1755973850757,1.77915447,115150.0,115140.0,0.4662017]
[1755973853354,1.77915447,115150.0,115140.0,0.4182317]
[1755973854466,1.77915447,115150.0,115140.0,0.34]
[1755973855865,1.77915447,115150.0,115140.0,0.40257445]
[1755973859066,0.99195447,115150.0,115140.0,0.40257445]
[1755973859263,1.77899447,115150.0,115140.0,0.40257445]
[1755973861569,1.78050639,115150.0,115140.0,0.40257445]
[1755973865774,1.78050639,115150.0,115140.0,0.34]
[1755973867667,0.0868793,115140.0,115130.0,0.0782317]
[1755973867869,0.0868868,115130.0,115120.0,0.08646943]
[1755973868069,0.0868868,115130.0,115120.0,0.02391]
[1755973868070,1.2346868,115130.0,115120.0,0.02391]
[1755973868275,1.57700495,115130.0,115120.0,0.03329]
[1755973868568,0.79000495,115130.0,115120.0,0.03329]
[1755973868876,1.57600495,115130.0,115120.0,0.03329]
[1755973869272,1.57600495,115130.0,115120.0,0.03529]
[1755973869769,0.78900495,115130.0,115120.0,0.03529]
[1755973869976,1.57596495,115130.0,115120.0,0.36529]
[1755973870876,0.4466868,115130.0,115120.0,0.38785]
[1755973871076,1.57604495,115130.0,115120.0,0.42075]
[1755973873870,0.78900495,115130.0,115120.0,0.45136]
[1755973874077,0.8729668,115130.0,115120.0,1.04367815]
[1755973874378,1.21528495,115130.0,115120.0,1.04367815]
[1755973874574,0.42820495,115130.0,115120.0,1.13057245]
[1755973874779,1.21528495,115130.0,115120.0,1.19313188]
[1755973877980,1.21528495,115130.0,115120.0,1.10623758]
[1755973879078,1.21528495,115130.0,115120.0,1.19313188]
[1755973888993,1.21528495,115130.0,115120.0,0.85081373]
[1755973889291,1.21528495,115130.0,115120.0,1.19313188]
[1755973889893,1.21528495,115130.0,115120.0,0.94313188]
[1755973894194,0.42820495,115130.0,115120.0,0.94313188]
[1755973894394,1.21516495,115130.0,115120.0,0.94313188]
[1755973899088,1.21516495,115130.0,115120.0,0.88057245]
[1755973900199,1.21516495,115130.0,115120.0,0.5382543]
[1755973900394,1.21516495,115130.0,115120.0,0.88057245]
[1755973900799,0.42820495,115130.0,115120.0,0.88057245]
[1755973901001,1.21516495,115130.0,115120.0,0.88057245]
[1755973901896,1.21516495,115130.0,115120.0,0.45136]
[1755973902197,1.21516495,115130.0,115120.0,0.79367815]
[1755973902898,0.42820495,115130.0,115120.0,0.45136]
[1755973903203,1.21512495,115130.0,115120.0,0.79367815]
[1755973903999,0.42820495,115130.0,115120.0,0.88057255]
[1755973904202,1.21512495,115130.0,115120.0,0.88057255]
[1755973904999,1.21512495,115130.0,115120.0,0.79367815]
[1755973905408,1.21512495,115130.0,115120.0,0.87190985]
[1755973905803,1.21512495,115130.0,115120.0,0.93451157]
[1755973906001,1.21512495,115130.0,115120.0,0.85627987]
[1755973907293,1.21512495,115130.0,115120.0,0.51396172]
[1755973907494,1.21512495,115130.0,115120.0,0.85627987]
[1755973908098,1.21512495,115130.0,115120.0,0.79367815]
[1755973914111,1.21512495,115130.0,115120.0,0.45136]
[1755973914309,1.21512495,115130.0,115120.0,0.79367815]
[1755973914710,1.21512495,115130.0,115120.0,0.45136]
[1755973914911,1.21512495,115130.0,115120.0,0.85628065]
[1755973915101,1.21512495,115130.0,115120.0,0.79367815]
[1755973915711,1.21512495,115130.0,115120.0,0.45136]
[1755973916012,1.21512495,115130.0,115120.0,0.87190985]
[1755973917412,1.21512495,115130.0,115120.0,0.5295917]
[1755973917714,0.8728068,115130.0,115120.0,0.87190985]
[1755973917902,1.21512495,115130.0,115120.0,0.87190985]
[1755973918713,1.21512495,115130.0,115120.0,0.5295917]
[1755973918912,1.21512495,115130.0,115120.0,0.87190985]
[1755973920315,1.21512495,115130.0,115120.0,0.5295917]
[1755973920613,1.21512495,115130.0,115120.0,0.87190985]
[1755973921314,0.8728068,115130.0,115120.0,0.87190985]
[1755973921710,1.21512495,115130.0,115120.0,0.87190985]
[1755973924118,0.8728068,115130.0,115120.0,0.5295917]
[1755973924413,1.21512495,115130.0,115120.0,0.87190985]
[1755973926616,0.8728068,115130.0,115120.0,0.87190985]
[1755973926811,0.8728068,115130.0,115120.0,0.95880425]
[1755973927017,1.21512495,115130.0,115120.0,0.95880425]
[1755973928219,0.8728068,115130.0,115120.0,0.95880425]
[1755973928417,1.21512495,115130.0,115120.0,0.95880425]
[1755973929118,0.42820495,115130.0,115120.0,0.95880425]
[1755973929309,1.21500495,115130.0,115120.0,0.95880425]
[1755973929509,0.8726868,115130.0,115120.0,0.95880425]
[1755973929909,1.21500495,115130.0,115120.0,0.95880425]
[1755973930119,1.21500495,115130.0,115120.0,0.88057255]
[1755973930419,1.21500495,115130.0,115120.0,0.95880425]
[1755973930611,0.42820495,115130.0,115120.0,0.95880425]
[1755973930812,1.21500495,115130.0,115120.0,0.95880425]
[1755973933315,1.21536495,115130.0,115120.0,0.95880425]
[1755973933514,1.21536495,115130.0,115120.0,0.88057255]
[1755973934022,0.8730468,115130.0,115120.0,0.88057255]
[1755973934223,0.46548958,115140.0,115130.0,0.0868868]
[1755973934523,1.23404773,115140.0,115130.0,1.19021495]
[1755973935127,1.23432773,115140.0,115130.0,1.19021495]
[1755973935519,1.23532773,115140.0,115130.0,1.19021495]
[1755973936030,1.23532773,115140.0,115130.0,0.8478968]
[1755973936324,0.44800773,115140.0,115130.0,1.19021495]
[1755973936526,1.23528773,115140.0,115130.0,1.26844665]
[1755973936930,1.23528773,115140.0,115130.0,1.18155985]
[1755973937129,1.23528773,115140.0,115130.0,1.10332815]
[1755973940132,0.44800773,115140.0,115130.0,1.18155985]
[1755973940324,1.23532773,115140.0,115130.0,1.18155985]
[1755973945433,0.44800773,115140.0,115130.0,1.18155985]
[1755973945630,1.23588773,115140.0,115130.0,1.18155985]
[1755973947032,1.23588773,115140.0,115130.0,0.8392417]
[1755973948121,0.10568958,115140.0,115130.0,0.8392417]
[1755973948428,1.23644773,115140.0,115130.0,0.8392417]
[1755973950029,1.23644773,115140.0,115130.0,0.76101]
[1755973952730,0.89412958,115140.0,115130.0,0.76101]
[1755973952931,1.23644773,115140.0,115130.0,0.76101]
[1755973954532,0.89412958,115140.0,115130.0,0.76101]
[1755973955232,1.23644773,115140.0,115130.0,0.76101]
[1755973955832,1.23644773,115140.0,115130.0,0.82353501]
[1755973958130,1.23644773,115140.0,115130.0,1.16585316]
[1755973959741,1.23644773,115140.0,115130.0,1.10332815]
[1755973962639,0.44800773,115140.0,115130.0,1.10332815]
[1755973962939,1.23688773,115140.0,115130.0,1.10332815]
[1755973963338,1.23688773,115140.0,115130.0,1.18155985]
[1755973965034,1.23688773,115140.0,115130.0,1.10332815]
[1755973965632,0.89456958,115140.0,115130.0,1.10332815]
[1755973965833,1.23688773,115140.0,115130.0,1.10332815]
[1755973966034,1.23672773,115140.0,115130.0,1.26844665]
[1755973966941,1.23672773,115140.0,115130.0,0.9261285]
[1755973967142,1.23672773,115140.0,115130.0,1.26844665]
[1755973969143,1.23572773,115140.0,115130.0,1.26844665]
[1755973969335,1.23772773,115140.0,115130.0,1.26944665]
[1755973973154,1.23772773,115140.0,115130.0,1.18255985]
[1755973974643,1.23772773,115140.0,115130.0,0.8402417]
[1755973974948,1.23772773,115140.0,115130.0,1.18255985]
[1755973980544,0.89540958,115140.0,115130.0,1.18255985]
[1755973980750,1.23772773,115140.0,115130.0,1.18255985]
[1755973981251,1.23772773,115140.0,115130.0,1.14971985]
[1755973981552,1.23772773,115140.0,115130.0,1.18438985]
[1755973982452,1.23772773,115140.0,115130.0,0.8420717]
[1755973983054,1.23772773,115140.0,115130.0,0.4812717]
[1755973986659,0.89460958,115140.0,115130.0,0.4812717]
[1755973986860,1.23692773,115140.0,115130.0,0.82358985]
[1755973987158,1.23692773,115140.0,115130.0,1.52127665]
[1755973987159,0.002,115140.0,115130.0,1.52127665]
[1755973987358,0.7902,115140.0,115130.0,1.88130752]
[1755973987558,0.07096874,115150.0,115140.0,0.2052993]
[1755973987759,2.0996271,115160.0,115150.0,0.1123118]
[1755973988058,3.23026525,115160.0,115150.0,0.96583145]
[1755973988261,2.86946525,115160.0,115150.0,0.96583145]
[1755973988855,2.87246525,115160.0,115150.0,0.96683145]
[1755973989860,2.86946525,115160.0,115150.0,0.96583145]
[1755973990058,2.87146525,115160.0,115150.0,0.96583145]
[1755973990256,2.87146525,115160.0,115150.0,0.88760995]
[1755973990452,2.87146525,115160.0,115150.0,0.96583145]
[1755973990654,2.87134525,115160.0,115150.0,0.9832239]
[1755973991453,2.87134525,115160.0,115150.0,0.9050024]
[1755973992469,2.86934525,115160.0,115150.0,0.9050024]
[1755973992759,2.86934525,115160.0,115150.0,0.9060024]
[1755973994264,2.86934525,115160.0,115150.0,0.9842239]
[1755973994462,2.86934525,115160.0,115150.0,0.9060024]
[1755973995960,2.86934525,115160.0,115150.0,0.96841495]
[1755974006071,2.86934525,115160.0,115150.0,0.9060024]
[1755974010074,2.86934525,115160.0,115150.0,1.2668024]
[1755974010275,2.86934525,115160.0,115150.0,0.9060024]
[1755974011383,2.86934525,115160.0,115150.0,0.9842239]
[1755974012593,2.86934525,115160.0,115150.0,0.9060024]
[1755974013086,2.87034525,115160.0,115150.0,0.9050024]
[1755974014489,2.5280271,115160.0,115150.0,1.2658024]
[1755974014683,2.87034525,115160.0,115150.0,1.2658024]
[1755974014988,2.87034525,115160.0,115150.0,1.3440239]
[1755974016990,2.86934525,115160.0,115150.0,1.3440239]
[1755974017190,2.87034525,115160.0,115150.0,1.3440239]
[1755974019392,2.86942525,115160.0,115150.0,1.3440239]
[1755974022388,2.86942525,115160.0,115150.0,1.37531385]
[1755974023400,1.21746525,115160.0,115150.0,1.37531385]
[1755974024800,0.43018525,115160.0,115150.0,1.2658024]
[1755974025097,1.13031815,115160.0,115150.0,1.3440231]
[1755974025297,0.788,115160.0,115150.0,1.9548231]
[1755974025489,0.788,115160.0,115150.0,1.8766024]
[1755974025695,0.788,115160.0,115150.0,1.98611385]
[1755974027398,0.001,115160.0,115150.0,1.98611385]
[1755974027606,0.78792,115160.0,115150.0,1.98611385]
[1755974032904,0.001,115160.0,115150.0,1.98611385]
[1755974033207,0.78788,115160.0,115150.0,1.98611385]
[1755974034110,0.78888,115160.0,115150.0,1.98911385]
[1755974039008,0.78888,115160.0,115150.0,1.73911385]
[1755974040414,0.001,115160.0,115150.0,1.73911385]
[1755974040717,0.78848,115160.0,115150.0,1.73911385]
[1755974043410,0.78848,115160.0,115150.0,1.6296024]
[1755974044419,0.67115268,115160.0,115150.0,1.6296024]
[1755974044924,0.67115268,115160.0,115150.0,1.73888923]
[1755974047022,0.67115268,115160.0,115150.0,1.39657108]
[1755974047320,0.67115268,115160.0,115150.0,1.73888923]
[1755974051525,0.0868571,115170.0,115160.0,0.1349446]
[1755974051730,0.8750571,115170.0,115160.0,1.29796584]
[1755974052222,0.8750571,115170.0,115160.0,0.95564769]
[1755974052424,0.8750571,115170.0,115160.0,1.29796584]
[1755974052825,1.21737525,115170.0,115160.0,1.29796584]
[1755974053820,1.21737525,115170.0,115160.0,1.29996584]
[1755974054928,0.8750571,115170.0,115160.0,1.29996584]
[1755974055832,0.8750571,115170.0,115160.0,0.95764769]
[1755974056026,0.8750571,115170.0,115160.0,1.22187275]
[1755974060531,0.8750571,115170.0,115160.0,0.86107275]
[1755974060728,0.8750571,115170.0,115160.0,1.22187275]
[1755974061527,0.8750571,115170.0,115160.0,1.33115958]
[1755974061726,0.8750571,115170.0,115160.0,0.98884143]
[1755974061926,0.8750571,115170.0,115160.0,1.33115958]
[1755974063235,0.8750571,115170.0,115160.0,1.22187275]
[1755974066136,0.8750571,115170.0,115160.0,1.33137819]
[1755974067135,0.8750571,115170.0,115160.0,1.22187275]
[1755974068032,1.21737525,115170.0,115160.0,0.39837]
[1755974068237,1.21737525,115170.0,115160.0,0.47659163]
[1755974068440,1.21737525,115170.0,115160.0,0.85133978]
[1755974069340,0.42917525,115170.0,115160.0,0.85133978]
[1755974069535,1.21665525,115170.0,115160.0,0.85133978]
[1755974071340,1.21665525,115170.0,115160.0,0.77311815]
[1755974074358,1.21665525,115170.0,115160.0,0.85133978]
[1755974074850,1.8089734,115170.0,115160.0,0.47659163]
[1755974075052,1.46665525,115170.0,115160.0,0.46308163]
[1755974075253,1.46665525,115170.0,115160.0,0.38486]
[1755974075852,1.82745525,115170.0,115160.0,0.38486]
[1755974076558,1.82745525,115170.0,115160.0,0.36834]
[1755974076758,2.1697734,115170.0,115160.0,0.34609]
[1755974076959,1.82745525,115170.0,115160.0,0.34609]
[1755974077754,1.4851371,115170.0,115160.0,0.34609]
[1755974077950,1.4851371,115170.0,115160.0,0.34409]
[1755974078150,2.1697734,115170.0,115160.0,0.34409]
[1755974078351,2.1697734,115170.0,115160.0,0.40662372]
[1755974078552,1.82745525,115170.0,115160.0,0.40662372]
[1755974080261,2.1697734,115170.0,115160.0,0.39731372]
[1755974081359,2.1697734,115170.0,115160.0,0.39728298]
[1755974081560,2.1697734,115170.0,115160.0,0.33478]
[1755974081749,2.1695734,115170.0,115160.0,0.33478]
[1755974082354,1.3822934,115170.0,115160.0,0.33478]
[1755974082556,2.1696534,115170.0,115160.0,0.33478]
[1755974082758,2.1696534,115170.0,115160.0,0.41300163]
[1755974082959,2.1696534,115170.0,115160.0,0.33478]
[1755974084354,1.3822934,115170.0,115160.0,0.33478]
[1755974084560,1.82729525,115170.0,115160.0,0.33478]
[1755974084761,1.82729525,115170.0,115160.0,0.3442]
[1755974087060,1.4849771,115170.0,115160.0,0.36592]
[1755974087249,1.82729525,115170.0,115160.0,0.36592]
[1755974089365,1.82729525,115170.0,115160.0,0.42841001]
[1755974089662,1.82729525,115170.0,115160.0,0.36592]
[1755974091767,1.82729525,115170.0,115160.0,0.42841001]
[1755974095567,1.82729525,115170.0,115160.0,0.33478]
[1755974095568,1.92112506,115170.0,115160.0,0.33478]
[1755974098868,1.92112506,115170.0,115160.0,0.39727001]
[1755974099073,1.92112506,115170.0,115160.0,0.19727001]
[1755974099273,1.92112506,115170.0,115160.0,0.36478]
[1755974104576,1.92084506,115170.0,115160.0,0.36478]
[1755974105577,1.92084506,115170.0,115160.0,0.37423]
[1755974107378,1.92084506,115170.0,115160.0,0.3644]
[1755974113178,1.49460506,115170.0,115160.0,0.39657]
[1755974113383,2.28164506,115170.0,115160.0,0.44255]
[1755974113585,2.28164506,115170.0,115160.0,0.45797]
[1755974115681,1.49460506,115170.0,115160.0,0.45797]
[1755974115888,2.28164506,115170.0,115160.0,0.45797]
[1755974116784,1.92084506,115170.0,115160.0,0.45797]
[1755974117491,1.92084506,115170.0,115160.0,0.44366]
[1755974117690,1.92084506,115170.0,115160.0,0.41199]
[1755974118881,1.92084506,115170.0,115160.0,0.45797]
[1755974121288,1.92084506,115170.0,115160.0,0.44366]
[1755974121492,1.92084506,115170.0,115160.0,0.47448001]
[1755974122889,1.92084506,115170.0,115160.0,0.44366]
[1755974124492,1.92084506,115170.0,115160.0,0.41199]
[1755974124991,1.92084506,115170.0,115160.0,0.47448001]
[1755974125687,0.44916876,115170.0,115160.0,0.50615001]
[1755974125888,1.92084506,115170.0,115160.0,0.52046001]
[1755974126087,0.44916876,115170.0,115160.0,0.52046001]
[1755974126288,1.92084506,115170.0,115160.0,0.52046001]
[1755974126787,1.13380506,115170.0,115160.0,0.52046001]
[1755974126987,1.92084506,115170.0,115160.0,0.52046001]
[1755974135903,1.94171704,115170.0,115160.0,0.45797]
[1755974143111,1.94167704,115170.0,115160.0,0.45797]
[1755974145919,1.92080506,115170.0,115160.0,0.52046001]
[1755974148019,1.94011617,115170.0,115160.0,0.52046001]
[1755974148209,3.59179617,115170.0,115160.0,0.52046001]
[1755974162926,3.59175617,115170.0,115160.0,0.52046001]
[1755974164931,2.90711987,115170.0,115160.0,0.52046001]
[1755974165132,3.59175617,115170.0,115160.0,0.52046001]
[1755974167933,2.80479617,115170.0,115160.0,0.52046001]
[1755974168136,3.59171617,115170.0,115160.0,0.52046001]
[1755974168729,2.80479617,115170.0,115160.0,0.52046001]
[1755974168927,3.59171617,115170.0,115160.0,0.52046001]
[1755974175937,3.61228725,115170.0,115160.0,0.45797]
[1755974180339,2.82536725,115170.0,115160.0,0.45797]
[1755974180539,3.61224725,115170.0,115160.0,0.45797]
[1755974181838,1.96056725,115170.0,115160.0,0.45797]
[1755974182442,1.59976725,115170.0,115160.0,0.45797]
[1755974182636,1.96056725,115170.0,115160.0,0.45797]
[1755974183840,1.17368725,115170.0,115160.0,0.45797]
[1755974184041,1.96056725,115170.0,115160.0,0.45797]
[1755974185935,1.93999617,115170.0,115160.0,0.52046001]
[1755974187450,1.57919617,115170.0,115160.0,0.52046001]
[1755974187740,1.93999617,115170.0,115160.0,0.52046001]
[1755974190644,1.15311617,115170.0,115160.0,0.52046001]
[1755974190840,1.93995617,115170.0,115160.0,0.52046001]
[1755974191446,3.59159617,115170.0,115160.0,0.52046001]
[1755974193947,3.59155617,115170.0,115160.0,0.52046001]
[1755974204651,2.80475617,115170.0,115160.0,0.52046001]
[1755974204951,3.59151617,115170.0,115160.0,0.52046001]
[1755974206756,3.23071617,115170.0,115160.0,0.52046001]
[1755974206954,3.59151617,115170.0,115160.0,0.52046001]
[1755974209857,3.23071617,115170.0,115160.0,0.52046001]
[1755974210056,3.59151617,115170.0,115160.0,0.52046001]
[1755974212464,3.23071617,115170.0,115160.0,0.52046001]
[1755974212759,3.59151617,115170.0,115160.0,0.52046001]
[1755974216861,3.23071617,115170.0,115160.0,0.52046001]
[1755974217064,3.59151617,115170.0,115160.0,0.52046001]
[1755974217868,3.23071617,115170.0,115160.0,0.52046001]
[1755974218165,3.59151617,115170.0,115160.0,0.52046001]
[1755974218865,3.23071617,115170.0,115160.0,0.52046001]
[1755974219066,3.59151617,115170.0,115160.0,0.52046001]
[1755974219866,3.23071617,115170.0,115160.0,0.52046001]
[1755974220060,3.59151617,115170.0,115160.0,0.52046001]
[1755974220870,3.23071617,115170.0,115160.0,0.52046001]
[1755974221073,3.59151617,115170.0,115160.0,0.52046001]
[1755974225478,3.23071617,115170.0,115160.0,0.52046001]
[1755974225668,3.59151617,115170.0,115160.0,0.52046001]
[1755974226169,3.61191862,115170.0,115160.0,0.45797]
[1755974228577,3.25111862,115170.0,115160.0,0.45797]
[1755974228779,3.61191862,115170.0,115160.0,0.45797]
[1755974230575,3.25111862,115170.0,115160.0,0.45797]
[1755974230775,3.61191862,115170.0,115160.0,0.45797]
[1755974235982,3.59151617,115170.0,115160.0,0.52046001]
[1755974238187,3.59151617,115170.0,115160.0,0.48879001]
[1755974239383,3.59151617,115170.0,115160.0,0.52182001]
[1755974240687,3.23071617,115170.0,115160.0,0.52182001]
[1755974240886,3.59151617,115170.0,115160.0,0.52182001]
[1755974241786,3.23071617,115170.0,115160.0,0.52182001]
[1755974241983,3.59151617,115170.0,115160.0,0.52182001]
[1755974245688,3.23071617,115170.0,115160.0,0.52182001]
[1755974245882,3.59151617,115170.0,115160.0,0.52182001]
[1755974246088,3.59151617,115170.0,115160.0,0.47448001]
[1755974247690,2.90687987,115170.0,115160.0,0.47448001]
[1755974247892,3.59151617,115170.0,115160.0,0.50923001]
[1755974248083,3.59151617,115170.0,115160.0,0.47448001]
[1755974254785,3.59151617,115170.0,115160.0,0.50923001]
[1755974257395,3.59151617,115170.0,115160.0,0.52370001]
[1755974260395,3.59131617,115170.0,115160.0,0.52370001]
[1755974262097,2.80475617,115170.0,115160.0,0.52370001]
[1755974262397,3.59131617,115170.0,115160.0,0.52370001]
[1755974264501,3.23051617,115170.0,115160.0,0.52370001]
[1755974264796,3.59131617,115170.0,115160.0,0.52370001]
[1755974265995,3.61150877,115170.0,115160.0,0.46121]
[1755974267290,3.61150877,115170.0,115160.0,0.41199]
[1755974267996,3.59219766,115170.0,115160.0,0.41199]
[1755974269903,3.59219766,115170.0,115160.0,0.39657]
[1755974276006,3.57200506,115170.0,115160.0,0.45906001]
[1755974283712,2.10080876,115170.0,115160.0,0.49341001]
[1755974283910,3.57188506,115170.0,115160.0,0.52423001]
[1755974291522,3.21108506,115170.0,115160.0,0.52423001]
[1755974291722,3.57188506,115170.0,115160.0,0.52423001]
[1755974293632,2.10080876,115170.0,115160.0,0.52423001]
[1755974293927,3.22952691,115170.0,115160.0,0.86654816]
[1755974294229,3.22952691,115170.0,115160.0,0.52423001]
[1755974294727,2.44312691,115170.0,115160.0,0.52423001]
[1755974295028,3.22952691,115170.0,115160.0,0.52423001]
[1755974295534,2.44312691,115170.0,115160.0,0.52423001]
[1755974295734,3.22952691,115170.0,115160.0,0.52423001]
[1755974296832,2.44312691,115170.0,115160.0,0.52423001]
[1755974297136,3.22952691,115170.0,115160.0,0.52423001]
[1755974297631,2.86872691,115170.0,115160.0,0.52423001]
[1755974297832,3.22952691,115170.0,115160.0,0.52423001]
[1755974300233,3.22952691,115170.0,115160.0,0.47494001]
[1755974301037,3.57184506,115170.0,115160.0,0.47494001]
[1755974308833,3.21104506,115170.0,115160.0,0.47494001]
[1755974309041,3.57184506,115170.0,115160.0,0.47494001]
[1755974309430,3.21104506,115170.0,115160.0,0.47494001]
[1755974309736,3.57184506,115170.0,115160.0,0.47494001]
[1755974310934,3.22952691,115170.0,115160.0,0.47494001]
[1755974311140,2.88720876,115170.0,115160.0,0.50857001]
[1755974311342,3.57184506,115170.0,115160.0,0.50857001]
[1755974311644,3.21104506,115170.0,115160.0,0.50857001]
[1755974311833,3.57184506,115170.0,115160.0,0.50857001]
[1755974314444,3.57184506,115170.0,115160.0,0.47494001]
[1755974315242,1.92020506,115170.0,115160.0,0.47494001]
[1755974315842,1.55940506,115170.0,115160.0,0.47494001]
[1755974316042,1.92020506,115170.0,115160.0,0.41245]
[1755974317941,1.92020506,115170.0,115160.0,0.47494001]
[1755974318136,1.13380506,115170.0,115160.0,0.47494001]
[1755974318442,1.92016506,115170.0,115160.0,0.47494001]
[1755974319742,1.55936506,115170.0,115160.0,0.47494001]
[1755974319944,1.92016506,115170.0,115160.0,0.47494001]
[1755974322142,1.92016506,115170.0,115160.0,0.50857001]